fUSD/lending_fUSD_20250911
["ID","MTS","AMOUNT","RATE_DAILY","PERIOD"]
[384964035,1757634676261,-403.48417174,0.00027671,7]
[384964036,1757634676270,-400.0,0.00027671,7]
[384964037,1757634676279,-400.0,0.00027671,7]
[384964038,1757634676288,-825.87,0.00027671,7]
[384964039,1757634676301,-400.0,0.00027671,7]
[384964040,1757634676310,-2327.54,0.00027671,7]
[384964041,1757634676319,-662.62,0.00027671,7]
[384964042,1757634676328,-438.27,0.00027671,7]
[384964043,1757634676338,-400.0,0.00027671,7]
[384964044,1757634676347,-400.0,0.00027671,7]
[384964045,1757634676356,-400.0,0.00027671,7]
[384964046,1757634676366,-998.44,0.00027671,7]
[384964047,1757634676376,-400.0,0.00027671,2]
[384964048,1757634676385,-1349.59,0.00027671,7]
[384964049,1757634676394,-1122.57,0.00027671,7]
[384964050,1757634676403,-400.0,0.00027671,7]
[384964051,1757634676412,-400.0,0.00027671,7]
[384964052,1757634676422,-514.92336791,0.00027671,7]
[384964053,1757634676430,-846.49,0.00027671,7]
[384964054,1757634676439,-400.0,0.00027671,7]
[384964055,1757634676449,-1124.43,0.00027671,7]
[384964056,1757634676459,-400.0,0.00027671,7]
[384964057,1757634677117,-1283.62,0.00027671,7]
[384964058,1757634677156,-672.45,0.00027671,7]
[384964059,1757634677180,-151.0,0.00027671,7]
[384964060,1757634677200,-151.0,0.00027671,7]
[384964061,1757634677217,-400.0,0.00027671,7]
[384964062,1757634677227,-400.0,0.00027671,7]
[384964063,1757634677236,-4088.02,0.00027671,7]
[384964064,1757634677245,-400.0,0.00027671,7]
[384964065,1757634677254,-400.0,0.00027671,7]
[384964066,1757634677263,-400.0,0.00027671,7]
[384964067,1757634677272,-2033.91,0.00027671,7]
[384964068,1757634677281,-400.0,0.00027671,7]
[384964069,1757634677291,-400.0,0.00027671,7]
[384964070,1757634677303,-400.0,0.00027671,7]
[384964071,1757634677313,-402.5195466,0.00027671,7]
[384964072,1757634677322,-400.0,0.00027671,7]
[384964073,1757634677332,-3316.96,0.00027671,5]
[384964074,1757634677343,-426.4,0.00027671,7]
[384964075,1757634677353,-1029.74,0.00027671,7]
[384964076,1757634677362,-400.0,0.00027671,7]
[384964077,1757634677372,-400.0,0.00027671,7]
[384964078,1757634677382,-400.0,0.00027671,7]
[384964079,1757634677393,-1134.14,0.00027671,7]
[384964080,1757634677402,-1186.01,0.00027671,7]
[384964081,1757634677412,-400.0,0.00027671,7]
[384964082,1757634677421,-1197.51,0.00027671,7]
[384964083,1757634677431,-1751.8,0.00027671,7]
[384964084,1757634677440,-1014.22,0.00027671,7]
[384964085,1757634677449,-758.04,0.00027671,7]
[384964086,1757634677459,-794.75,0.00027671,7]
[384964087,1757634677468,-400.0,0.00027671,7]
[384964088,1757634677477,-151.0,0.00027671,7]
[384964089,1757634677486,-400.0,0.00027671,7]
[384964090,1757634677495,-151.0,0.00027671,7]
[384964091,1757634677504,-151.0,0.00027671,7]
[384964092,1757634677513,-151.0,0.00027671,7]
[384964093,1757634677522,-400.0,0.00027671,7]
[384964094,1757634677531,-747.07,0.00027671,7]
[384964096,1757634677541,-796.94,0.00027671,7]
[384964097,1757634677550,-400.0,0.00027671,7]
[384964098,1757634677559,-400.0,0.00027671,7]
[384964099,1757634677568,-151.0,0.00027671,7]
[384964100,1757634677577,-151.0,0.00027671,7]
[384964101,1757634677585,-151.0,0.00027671,7]
[384964102,1757634677594,-400.0,0.00027671,7]
[384964103,1757634677603,-151.0,0.00027671,7]
[384964104,1757634677612,-1145.26,0.00027671,7]
[384964105,1757634677621,-151.0,0.00027671,7]
[384964106,1757634677630,-1104.91,0.00027671,7]
[384964107,1757634677639,-151.0,0.00027671,7]
[384964108,1757634677650,-151.0,0.00027671,7]
[384964109,1757634677661,-651.02,0.00027671,7]
[384964110,1757634677671,-151.0,0.00027671,7]
[384964111,1757634677679,-400.0,0.00027671,7]
[384964112,1757634677690,-1333.92,0.00027671,7]
[384964113,1757634677699,-588.35,0.00027671,7]
[384964114,1757634677708,-932.26,0.00027671,7]
[384964115,1757634677717,-765.68,0.00027671,7]
[384964116,1757634677726,-400.0,0.00027671,7]
[384964117,1757634677735,-400.0,0.00027671,7]
[384964118,1757634677744,-400.0,0.00027671,7]
[384964119,1757634677753,-151.0,0.00027671,7]
[384964120,1757634677762,-151.0,0.00027671,7]
[384964121,1757634677771,-1152.42,0.00027671,7]
[384964122,1757634677780,-400.0,0.00027671,7]
[384964123,1757634677789,-400.0,0.00027671,7]
[384964124,1757634677799,-2475.36,0.00027671,7]
[384964125,1757634677808,-421.1,0.00027671,7]
[384964126,1757634677816,-693.22,0.00027671,7]
[384964127,1757634677826,-151.0,0.00027671,7]
[384964128,1757634677835,-151.0,0.00027671,7]
[384964129,1757634677845,-401.41643256,0.00027671,7]
[384964130,1757634677854,-264.166783,0.00027671,7]
[384964131,1757634677863,-774.29,0.00027671,7]
[384964132,1757634677873,-400.0,0.00027671,7]
[384964133,1757634677882,-1076.79,0.00027671,7]
[384964134,1757634677891,-799.89,0.00027671,7]
[384964135,1757634677900,-400.0,0.00027671,7]
[384964136,1757634677909,-400.0,0.00027671,7]
[384964137,1757634677919,-400.0,0.00027671,7]
[384964138,1757634677928,-400.0,0.00027671,7]
[384964139,1757634677937,-1000.0,0.00027671,7]
[384964140,1757634677947,-178.855578,0.00027671,7]
[384964141,1757634677957,-1802.879465,0.00027671,7]
[384964142,1757634677967,-400.0,0.00027671,7]
[384964143,1757634677977,-1802.879465,0.00027671,7]
[384964144,1757634677987,-454.89,0.00027671,7]
[384964145,1757634677996,-500.0,0.00027673,5]
[384964147,1757634678006,-500.0,0.00027673,5]
[384964148,1757634678016,-500.0,0.00027673,5]
[384964149,1757634678025,-500.0,0.00027673,5]
[384964150,1757634678035,-500.0,0.00027673,5]
[384964151,1757634678046,-500.0,0.00027673,5]
[384964152,1757634678056,-500.0,0.00027673,5]
[384964153,1757634678065,-159.70156292,0.00027673,2]
[384964154,1757634678074,-500.0,0.00027673,5]
[384964155,1757634678084,-500.0,0.00027673,5]
[384964156,1757634678094,-2000.0,0.000277,2]
[384964157,1757634678104,-1680.0,0.00027825,2]
[384964158,1757634678114,-210.34693043,0.00027845,2]
[384964159,1757634678124,-157.65783195,0.00027845,2]
[384964160,1757634678133,-1376.9555757,0.00027845,2]
[384964161,1757634678143,-729.54,0.00027861,18]
[384964162,1757634678153,-500.0,0.00027921,2]
[384964163,1757634678163,-72651.17416487,0.00027938,2]
[384964164,1757634678173,-154.294021,0.00027938,7]
[384964165,1757634678182,-151.0,0.00027938,7]
[384964166,1757634678192,-151.0,0.00027938,7]
[384964167,1757634678202,-500.0,0.00027944,7]
[384964168,1757634678211,-500.0,0.00027944,7]
[384964169,1757634678221,-965.76,0.00027944,2]
[384964170,1757634678231,-500.0,0.00027944,7]
[384964171,1757634678240,-500.0,0.00027944,7]
[384964172,1757634678250,-500.0,0.00027944,7]
[384964173,1757634678259,-500.0,0.00027944,7]
[384964174,1757634678269,-500.0,0.00027944,7]
[384964175,1757634678279,-229.48887979,0.00027945,2]
[384964176,1757634678288,-165.03156757,0.00027945,7]
[384964177,1757634678301,-405.65134398,0.00027945,7]
[384964178,1757634678311,-549.9,0.00027945,7]
[384964179,1757634678320,-400.0,0.00027945,7]
[384964180,1757634678331,-400.0,0.00027945,7]
[384964181,1757634678341,-400.0,0.00027945,7]
[384964182,1757634678351,-400.0,0.00027945,7]
[384964183,1757634678360,-400.0,0.00027945,7]
[384964184,1757634678370,-400.0,0.00027945,7]
[384964185,1757634678380,-400.0,0.00027945,7]
[384964186,1757634678390,-793.43,0.00027945,7]
[384964187,1757634678400,-400.0,0.00027945,7]
[384964188,1757634678409,-400.0,0.00027945,7]
[384964189,1757634678419,-400.0,0.00027945,7]
[384964190,1757634678430,-400.0,0.00027945,7]
[384964191,1757634678440,-716.53,0.00027945,7]
[384964192,1757634678450,-400.0,0.00027945,7]
[384964193,1757634678459,-400.0,0.00027945,7]
[384964194,1757634678469,-400.0,0.00027945,7]
[384964195,1757634678479,-772.14,0.00027945,7]
[384964196,1757634678489,-436.34,0.00027945,7]
[384964197,1757634678498,-769.46,0.00027945,7]
[384964198,1757634678507,-400.0,0.00027945,7]
[384964199,1757634678517,-715.4,0.00027945,7]
[384964200,1757634678527,-400.0,0.00027945,7]
[384964201,1757634678536,-400.0,0.00027945,7]
[384964202,1757634678545,-400.0,0.00027945,7]
[384964203,1757634678554,-400.0,0.00027945,7]
[384964204,1757634678563,-400.0,0.00027945,7]
[384964205,1757634678573,-400.0,0.00027945,7]
[384964206,1757634678582,-400.0,0.00027945,7]
[384964207,1757634678592,-630.21,0.00027945,7]
[384964208,1757634678602,-400.0,0.00027945,7]
[384964209,1757634678611,-400.0,0.00027945,7]
[384964210,1757634678620,-400.0,0.00027945,7]
[384964211,1757634678629,-400.0,0.00027945,7]
[384964212,1757634678639,-623.84,0.00027945,7]
[384964213,1757634678649,-400.0,0.00027945,7]
[384964214,1757634678658,-400.0,0.00027945,7]
[384964215,1757634678667,-400.0,0.00027945,7]
[384964216,1757634678678,-235.28736022,0.00027945,7]
[384964217,1757634678688,-400.0,0.00027945,7]
[384964218,1757634678697,-400.0,0.00027945,7]
[384964219,1757634678707,-432.49205653,0.00027945,7]
[384964220,1757634678716,-755.03,0.00027945,7]
[384964221,1757634678726,-400.0,0.00027945,7]
[384964222,1757634678735,-400.0,0.00027945,7]
[384964223,1757634678745,-400.0,0.00027945,7]
[384964224,1757634678755,-400.0,0.00027945,7]
[384964225,1757634678765,-400.0,0.00027945,7]
[384964226,1757634678775,-772.94,0.00027945,7]
[384964227,1757634678785,-167.468664,0.00027945,7]
[384964228,1757634678795,-513.55,0.00027945,7]
[384964229,1757634678804,-400.0,0.00027945,7]
[384964230,1757634678814,-400.0,0.00027945,7]
[384964231,1757634678824,-400.0,0.00027945,7]
[384964232,1757634678834,-421.21571124,0.00027945,7]
[384964233,1757634678843,-400.0,0.00027945,7]
[384964234,1757634678852,-400.0,0.00027945,7]
[384964235,1757634678862,-424.88,0.00027945,7]
[384964236,1757634678872,-400.0,0.00027945,7]
[384964237,1757634678881,-400.0,0.00027945,7]
[384964238,1757634678891,-400.0,0.00027945,7]
[384964239,1757634678900,-410.65233696,0.00027945,7]
[384964240,1757634678910,-400.0,0.00027945,7]
[384964241,1757634678920,-400.0,0.00027945,7]
[384964242,1757634678930,-400.0,0.00027945,7]
[384964243,1757634678939,-400.0,0.00027945,7]
[384964244,1757634678949,-662.36,0.00027945,7]
[384964245,1757634678959,-400.0,0.00027945,7]
[384964246,1757634678969,-1001.33,0.00027945,7]
[384964247,1757634678978,-400.0,0.00027945,7]
[384964248,1757634678988,-400.0,0.00027945,7]
[384964249,1757634678998,-400.0,0.00027945,7]
[384964250,1757634679007,-587.53,0.00027945,7]
[384964251,1757634679017,-400.0,0.00027945,7]
[384964252,1757634679027,-400.0,0.00027945,7]
[384964253,1757634679037,-400.0,0.00027945,7]
[384964254,1757634679047,-400.0,0.00027945,7]
[384964255,1757634679057,-400.0,0.00027945,7]
[384964256,1757634679067,-400.0,0.00027945,7]
[384964257,1757634679078,-581.28,0.00027945,7]
[384964258,1757634679087,-524.54,0.00027945,7]
[384964259,1757634679097,-698.17,0.00027945,7]
[384964260,1757634679108,-222.73641089,0.00027945,7]
[384964261,1757634679118,-400.0,0.00027945,7]
[384964262,1757634679128,-400.0,0.00027945,7]
[384964263,1757634679139,-400.0,0.00027945,7]
[384964264,1757634679149,-551.77,0.00027945,7]
[384964265,1757634679159,-400.0,0.00027945,7]
[384964266,1757634679170,-800.69,0.00027945,7]
[384964267,1757634679181,-400.0,0.00027945,7]
[384964268,1757634679191,-400.0,0.00027945,7]
[384964269,1757634679201,-400.0,0.00027945,7]
[384964270,1757634679211,-279.39117642,0.00027945,7]
[384964271,1757634679220,-400.0,0.00027945,7]
[384964272,1757634679231,-703.13,0.00027945,7]
[384964273,1757634679241,-301.60612999,0.00027945,7]
[384964274,1757634679252,-400.0,0.00027945,7]
[384964275,1757634679262,-771.38,0.00027945,7]
[384964276,1757634679272,-400.0,0.00027945,7]
[384964277,1757634679281,-152.5,0.00027945,7]
[384964278,1757634679291,-400.0,0.00027945,7]
[384964279,1757634679305,-769.2,0.00027945,7]
[384964280,1757634679314,-400.0,0.00027945,7]
[384964281,1757634679324,-400.0,0.00027945,7]
[384964282,1757634679334,-719.07,0.00027945,7]
[384964283,1757634679345,-1109.35,0.00027945,7]
[384964284,1757634679355,-400.0,0.00027945,7]
[384964285,1757634679365,-533.27,0.00027945,7]
[384964286,1757634679378,-400.0,0.00027945,7]
[384964287,1757634679389,-198.93,0.00027945,7]
[384964288,1757634679398,-451.72,0.00027945,7]
[384964289,1757634679408,-400.0,0.00027945,7]
[384964290,1757634679418,-400.0,0.00027945,7]
[384964291,1757634679428,-400.0,0.00027945,7]
[384964292,1757634679438,-400.0,0.00027945,7]
[384964293,1757634679448,-400.0,0.00027945,7]
[384964294,1757634679457,-323.09787797,0.00027945,7]
[384964295,1757634679467,-400.0,0.00027945,7]
[384964296,1757634679476,-688.56,0.00027945,7]
[384964297,1757634679486,-1377.68,0.00027945,7]
[384964298,1757634679495,-570.16,0.00027945,7]
[384964299,1757634679504,-554.49,0.00027945,7]
[384964300,1757634679514,-466.67,0.00027945,7]
[384964301,1757634679523,-400.0,0.00027945,7]
[384964302,1757634679535,-400.0,0.00027945,7]
[384964303,1757634679545,-530.33,0.00027945,7]
[384964304,1757634679556,-400.0,0.00027945,7]
[384964305,1757634679566,-851.65,0.00027945,7]
[384964306,1757634679575,-400.0,0.00027945,7]
[384964307,1757634679585,-400.0,0.00027945,7]
[384964308,1757634679594,-429.81,0.00027945,7]
[384964309,1757634679604,-521.55,0.00027945,7]
[384964310,1757634679614,-400.0,0.00027945,7]
[384964311,1757634679624,-931.81,0.00027945,7]
[384964312,1757634679633,-400.0,0.00027945,7]
[384964313,1757634679643,-400.0,0.00027945,7]
[384964314,1757634679652,-400.0,0.00027945,7]
[384964315,1757634679662,-400.0,0.00027945,7]
[384964316,1757634679671,-400.0,0.00027945,7]
[384964317,1757634679681,-618.72,0.00027945,7]
[384964318,1757634679691,-898.12,0.00027945,7]
[384964319,1757634679701,-400.0,0.00027945,7]
[384964320,1757634679710,-951.0,0.00027945,7]
[384964321,1757634679720,-591.24,0.00027945,7]
[384964322,1757634679730,-400.0,0.00027945,7]
[384964323,1757634679739,-752.64,0.00027945,7]
[384964324,1757634679749,-400.0,0.00027945,7]
[384964325,1757634679759,-400.0,0.00027945,7]
[384964326,1757634679768,-636.01,0.00027945,7]
[384964327,1757634679778,-418.75,0.00027945,7]
[384964328,1757634679787,-400.0,0.00027945,7]
[384964329,1757634679797,-400.0,0.00027945,7]
[384964330,1757634679806,-706.86,0.00027945,7]
[384964331,1757634679816,-478.73473226,0.00027945,7]
[384964332,1757634679825,-400.0,0.00027945,7]
[384964333,1757634679834,-400.0,0.00027945,7]
[384964334,1757634680041,-400.0,0.00027945,7]
[384964335,1757634680051,-400.0,0.00027945,7]
[384964336,1757634680060,-400.0,0.00027945,7]
[384964337,1757634680070,-1498.76,0.00027945,7]
[384964338,1757634680080,-1206.61,0.00027945,7]
[384964339,1757634680090,-823.63,0.00027945,7]
[384964340,1757634680106,-400.0,0.00027945,7]
[384964341,1757634680116,-865.51,0.00027945,7]
[384964342,1757634680125,-692.16,0.00027945,7]
[384964343,1757634680138,-400.0,0.00027945,7]
[384964344,1757634680147,-400.0,0.00027945,7]
[384964345,1757634680157,-800.83,0.00027945,7]
[384964346,1757634680167,-400.0,0.00027945,7]
[384964347,1757634680177,-497.7,0.00027945,7]
[384964348,1757634680186,-400.0,0.00027945,7]
[384964349,1757634680195,-400.0,0.00027945,7]
[384964350,1757634680205,-1529.42,0.00027945,7]
[384964351,1757634680215,-952.61,0.00027945,7]
[384964352,1757634680226,-400.0,0.00027945,7]
[384964353,1757634680237,-518.82,0.00027945,7]
[384964354,1757634680248,-1019.93,0.00027945,7]
[384964355,1757634680260,-1116.15,0.00027945,7]
[384964356,1757634680269,-400.0,0.00027945,7]
[384964357,1757634680281,-400.0,0.00027945,7]
[384964358,1757634680290,-499.55,0.00027945,7]
[384964359,1757634680303,-1293.12,0.00027945,7]
[384964360,1757634680313,-400.0,0.00027945,7]
[384964361,1757634680322,-859.03,0.00027945,7]
[384964362,1757634680332,-400.0,0.00027945,7]
[384964363,1757634680342,-400.0,0.00027945,7]
[384964364,1757634680352,-400.0,0.00027945,7]
[384964365,1757634680361,-400.0,0.00027945,7]
[384964366,1757634680371,-735.61,0.00027945,7]
[384964367,1757634680382,-521.49,0.00027945,7]
[384964368,1757634680391,-453.01,0.00027945,7]
[384964369,1757634680401,-400.0,0.00027945,7]
[384964370,1757634680410,-936.13,0.00027945,7]
[384964371,1757634680420,-400.0,0.00027945,7]
[384964372,1757634680429,-400.0,0.00027945,7]
[384964373,1757634680438,-400.0,0.00027945,7]
[384964374,1757634680447,-839.79,0.00027945,7]
[384964375,1757634680457,-664.03,0.00027945,7]
[384964376,1757634680467,-789.52,0.00027945,7]
[384964377,1757634680476,-400.0,0.00027945,7]
[384964378,1757634680485,-1524.75,0.00027945,7]
[384964379,1757634680495,-400.0,0.00027945,7]
[384964380,1757634680503,-400.0,0.00027945,7]
[384964381,1757634680513,-400.0,0.00027945,7]
[384964382,1757634680522,-1166.16,0.00027945,7]
[384964383,1757634680532,-928.84,0.00027945,7]
[384964384,1757634680541,-1003.69,0.00027945,7]
[384964385,1757634680550,-400.0,0.00027945,7]
[384964386,1757634680559,-400.0,0.00027945,7]
[384964387,1757634680569,-400.0,0.00027945,7]
[384964388,1757634680578,-1059.22,0.00027945,7]
[384964389,1757634680587,-400.0,0.00027945,7]
[384964390,1757634680597,-400.0,0.00027945,7]
[384964391,1757634680607,-400.0,0.00027945,7]
[384964392,1757634680616,-588.3,0.00027945,7]
[384964393,1757634680626,-868.19,0.00027945,7]
[384964394,1757634680636,-151.0,0.00027945,7]
[384964395,1757634680646,-534.74,0.00027945,7]
[384964396,1757634680655,-465.54,0.00027945,7]
[384964397,1757634680664,-1076.03,0.00027945,7]
[384964398,1757634680674,-750.79,0.00027945,7]
[384964399,1757634680684,-400.0,0.00027945,7]
[384964401,1757634680693,-400.0,0.00027945,7]
[384964402,1757634680702,-961.4,0.00027945,7]
[384964403,1757634680711,-480.92,0.00027945,7]
[384964404,1757634680720,-883.07,0.00027945,7]
[384964405,1757634680729,-417.52,0.00027945,7]
[384964406,1757634680738,-1356.65,0.00027945,7]
[384964407,1757634680748,-400.0,0.00027945,7]
[384964408,1757634680758,-870.97,0.00027945,7]
[384964409,1757634680767,-400.0,0.00027945,7]
[384964410,1757634680776,-400.0,0.00027945,7]
[384964411,1757634680786,-729.65,0.00027945,7]
[384964412,1757634680795,-888.19,0.00027945,7]
[384964413,1757634680804,-675.33,0.00027945,7]
[384964414,1757634680813,-1080.33,0.00027945,7]
[384964415,1757634680822,-400.0,0.00027945,7]
[384964416,1757634680831,-400.0,0.00027945,7]
[384964417,1757634680840,-400.0,0.00027945,7]
[384964418,1757634680850,-400.0,0.00027945,7]
[384964419,1757634680859,-400.0,0.00027945,7]
[384964420,1757634680868,-1474.26,0.00027945,7]
[384964421,1757634680877,-400.0,0.00027945,7]
[384964422,1757634680887,-400.0,0.00027945,7]
[384964423,1757634680896,-1216.97,0.00027945,7]
[384964424,1757634680905,-465.65,0.00027945,7]
[384964425,1757634680915,-400.0,0.00027945,7]
[384964426,1757634680924,-400.0,0.00027945,7]
[384964427,1757634680933,-400.0,0.00027945,7]
[384964428,1757634680944,-400.0,0.00027945,7]
[384964429,1757634680953,-809.82,0.00027945,7]
[384964430,1757634680963,-400.0,0.00027945,7]
[384964431,1757634680972,-400.04,0.00027945,7]
[384964432,1757634680981,-581.59,0.00027945,7]
[384964433,1757634680991,-479.8,0.00027945,7]
[384964434,1757634681000,-291.94931172,0.00027945,7]
[384964435,1757634681009,-1397.29,0.00027945,7]
[384964436,1757634681018,-590.47,0.00027945,7]
[384964437,1757634681027,-711.68,0.00027945,7]
[384964438,1757634681037,-1041.39,0.00027945,7]
[384964439,1757634681046,-608.31,0.00027945,7]
[384964440,1757634681055,-727.08,0.00027945,7]
[384964441,1757634681064,-1086.16,0.00027945,7]
[384964442,1757634681074,-400.0,0.00027945,7]
[384964443,1757634681083,-1026.18,0.00027945,7]
[384964444,1757634681093,-400.0,0.00027945,7]
[384964445,1757634681102,-400.0,0.00027945,7]
[384964446,1757634681111,-616.36,0.00027945,7]
[384964447,1757634681121,-815.68,0.00027945,7]
[384964448,1757634681131,-400.0,0.00027945,7]
[384964449,1757634681140,-536.25,0.00027945,7]
[384964450,1757634681149,-547.5,0.00027945,7]
[384964451,1757634681159,-962.12,0.00027945,7]
[384964452,1757634681168,-847.97,0.00027945,7]
[384964453,1757634681177,-814.92,0.00027945,7]
[384964454,1757634681187,-400.0,0.00027945,7]
[384964455,1757634681196,-400.0,0.00027945,7]
[384964456,1757634681205,-892.89,0.00027945,7]
[384964457,1757634681214,-1207.36,0.00027945,7]
[384964458,1757634681224,-1005.23,0.00027945,7]
[384964459,1757634681234,-400.0,0.00027945,7]
[384964460,1757634681243,-400.0,0.00027945,7]
[384964461,1757634681254,-730.46,0.00027945,7]
[384964462,1757634681263,-717.05,0.00027945,7]
[384964463,1757634681272,-913.69,0.00027945,7]
[384964464,1757634681282,-599.88,0.00027945,7]
[384964465,1757634681291,-699.92,0.00027945,7]
[384964466,1757634681303,-400.0,0.00027945,7]
[384964467,1757634681313,-400.0,0.00027945,7]
[384964468,1757634681322,-421.77,0.00027945,7]
[384964469,1757634681331,-887.12,0.00027945,7]
[384964470,1757634681340,-1096.2,0.00027945,7]
[384964471,1757634681349,-992.48,0.00027945,7]
[384964472,1757634681359,-400.0,0.00027945,7]
[384964473,1757634681368,-420.06,0.00027945,7]
[384964474,1757634681378,-916.15,0.00027945,7]
[384964475,1757634681387,-400.0,0.00027945,7]
[384964476,1757634681397,-785.35,0.00027945,7]
[384964477,1757634681406,-827.49,0.00027945,7]
[384964478,1757634681415,-780.94,0.00027945,7]
[384964479,1757634681425,-400.0,0.00027945,7]
[384964480,1757634681434,-400.0,0.00027945,7]
[384964481,1757634681443,-400.0,0.00027945,7]
[384964482,1757634681453,-469.15,0.00027945,7]
[384964483,1757634681462,-400.0,0.00027945,7]
[384964484,1757634681472,-400.0,0.00027945,7]
[384964485,1757634681481,-1036.83,0.00027945,7]
[384964486,1757634681490,-960.81,0.00027945,7]
[384964487,1757634681499,-400.0,0.00027945,7]
[384964488,1757634681508,-523.52,0.00027945,7]
[384964489,1757634681519,-853.94,0.00027945,7]
[384964490,1757634681528,-400.0,0.00027945,7]
[384964491,1757634681538,-1079.02,0.00027945,7]
[384964492,1757634681547,-409.96,0.00027945,7]
[384964493,1757634681557,-400.0,0.00027945,7]
[384964494,1757634681567,-400.0,0.00027945,7]
[384964495,1757634681576,-400.0,0.00027945,7]
[384964496,1757634681585,-707.65,0.00027945,7]
[384964497,1757634681594,-1526.8,0.00027945,7]
[384964498,1757634681603,-923.17,0.00027945,7]
[384964499,1757634681613,-1509.75,0.00027945,7]
[384964500,1757634681622,-400.0,0.00027945,7]
[384964501,1757634681632,-400.0,0.00027945,7]
[384964502,1757634681641,-400.0,0.00027945,7]
[384964503,1757634681650,-501.02,0.00027945,7]
[384964504,1757634681660,-400.0,0.00027945,7]
[384964505,1757634681670,-865.22,0.00027945,7]
[384964506,1757634681679,-501.72,0.00027945,7]
[384964507,1757634681689,-1060.05,0.00027945,7]
[384964508,1757634681698,-400.0,0.00027945,7]
[384964509,1757634681708,-421.9,0.00027945,7]
[384964510,1757634681717,-492.6,0.00027945,7]
[384964511,1757634681726,-1010.27,0.00027945,7]
[384964512,1757634681735,-400.0,0.00027945,7]
[384964513,1757634681744,-1028.46,0.00027945,7]
[384964514,1757634681754,-400.0,0.00027945,7]
[384964515,1757634681763,-938.37,0.00027945,7]
[384964516,1757634681773,-684.85,0.00027945,7]
[384964517,1757634681783,-400.0,0.00027945,7]
[384964518,1757634681794,-626.76,0.00027945,7]
[384964519,1757634681804,-1160.39,0.00027945,7]
[384964520,1757634681816,-400.0,0.00027945,7]
[384964521,1757634681826,-400.0,0.00027945,7]
[384964522,1757634681836,-747.73,0.00027945,7]
[384964523,1757634681846,-408.87793054,0.00027945,7]
[384964524,1757634681857,-730.97,0.00027945,7]
[384964525,1757634681866,-1022.35,0.00027945,7]
[384964526,1757634681875,-400.0,0.00027945,7]
[384964527,1757634681885,-400.0,0.00027945,7]
[384964528,1757634681894,-817.28,0.00027945,7]
[384964529,1757634681903,-462.11,0.00027945,7]
[384964530,1757634681913,-400.0,0.00027945,7]
[384964531,1757634681922,-400.0,0.00027945,7]
[384964532,1757634681931,-400.0,0.00027945,7]
[384964533,1757634681940,-452.37,0.00027945,7]
[384964534,1757634681952,-871.42,0.00027945,7]
[384964535,1757634681962,-561.48,0.00027945,7]
[384964536,1757634681971,-400.0,0.00027945,7]
[384964537,1757634681980,-400.0,0.00027945,7]